fUSD/lending_fUSD_20250222
["ID","MTS","AMOUNT","RATE_DAILY","PERIOD"]
[354034919,1740189048093,-1219.552035,0.00013698,2]
[354034920,1740189048103,-151.0,0.00013698,2]
[354034921,1740189048115,-500.0,0.00013699,2]
[354034922,1740189048125,-500.0,0.00013699,2]
[354034923,1740189048135,-500.0,0.00013699,2]
[354034924,1740189048145,-500.0,0.00013699,2]
[354034925,1740189048154,-4000.0,0.00013699,2]
[354034926,1740189048164,-350.82,0.00013699,2]
[354034927,1740189048174,-500.0,0.00013699,2]
[354034928,1740189048184,-150.0,0.00013699,2]
[354034929,1740189048194,-200.0,0.00013699,2]
[354034930,1740189048204,-729.89,0.00013699,2]
[354034931,1740189048215,-2883.97,0.000137,2]
[354034932,1740189048226,-150.92511217,0.000137,2]
[354034933,1740189048236,-165.17310332,0.000137,2]
[354034934,1740189048246,-151.0,0.000137,2]
[354034935,1740189048256,-151.0,0.000137,2]
[354034936,1740189048266,-151.0,0.000137,2]
[354034937,1740189048276,-151.0,0.000137,2]
[354034938,1740189048286,-151.0,0.000137,2]
[354034939,1740189048296,-151.0,0.000137,2]
[354034940,1740189048306,-151.0,0.000137,2]
[354034941,1740189048316,-151.0,0.000137,2]
[354034942,1740189048325,-151.0,0.000137,2]
[354034943,1740189048335,-151.0,0.000137,2]
[354034944,1740189048345,-151.0,0.000137,2]
[354034945,1740189048355,-151.0,0.000137,2]
[354034946,1740189048365,-151.0,0.000137,2]
[354034947,1740189048374,-151.0,0.000137,2]
[354034948,1740189048384,-245.347089,0.000137,2]
[354034949,1740189048394,-151.464295,0.000137,2]
[354034950,1740189048403,-151.0,0.000137,2]
[354034951,1740189048413,-151.0,0.000137,2]
[354034952,1740189048422,-245.326573,0.000137,2]
[354034953,1740189048432,-245.326573,0.000137,2]
[354034954,1740189048443,-151.742434,0.000137,2]
[354034955,1740189048453,-780.340061,0.000137,2]
[354034956,1740189048462,-780.340061,0.000137,2]
[354034957,1740189048472,-151.0,0.000137,2]
[354034958,1740189048483,-151.0,0.000137,2]
[354034959,1740189048492,-151.0,0.000137,2]
[354034960,1740189048502,-151.0,0.000137,2]
[354034961,1740189048511,-9900.0,0.000137,5]
[354034962,1740189048522,-433.20460944,0.000137,2]
[354034963,1740189048532,-325.4044833,0.000137,2]
[354034964,1740189048542,-3978.96,0.000137,2]
[354034965,1740189048552,-344.22812849,0.000137,2]
[354034966,1740189048562,-2867.62248686,0.000137,2]
[354034967,1740189048572,-3165.86920281,0.00013723,2]
[354034968,1740189048581,-625.71175553,0.00013726,2]
[354034969,1740189048591,-203.82369593,0.00013752,2]
[354034970,1740189048601,-500.0,0.00013761,2]
[354034971,1740189048611,-500.0,0.00013761,2]
[354034972,1740189048621,-500.0,0.00013761,2]
[354034973,1740189048631,-500.0,0.00013761,2]
[354034974,1740189048640,-508.66531627,0.00013761,2]
[354034975,1740189048650,-500.0,0.00013761,2]
[354034976,1740189048660,-450.34304665,0.00013761,2]
[354034977,1740189048669,-621.34035478,0.00013761,2]
[354034978,1740189048680,-500.0,0.00013761,2]
[354034979,1740189048690,-500.0,0.00013761,2]
[354034980,1740189048700,-500.0,0.00013761,2]
[354034981,1740189048710,-500.0,0.00013761,2]
[354034982,1740189048720,-519.71211457,0.00013761,2]
[354034983,1740189048730,-500.0,0.00013761,2]
[354034984,1740189048740,-500.0,0.00013761,2]
[354034985,1740189048749,-500.0,0.00013761,2]
[354034986,1740189048759,-500.0,0.00013761,2]
[354034987,1740189048768,-500.0,0.00013761,2]
[354034988,1740189048778,-500.0,0.00013761,2]
[354034989,1740189048787,-532.77805075,0.00013761,2]
[354034990,1740189048799,-560.33,0.00013761,2]
[354034991,1740189048810,-500.0,0.00013761,2]
[354034992,1740189048819,-500.0,0.00013761,2]
[354034993,1740189048829,-500.0,0.00013761,2]
[354034994,1740189048839,-500.0,0.00013761,2]
[354034995,1740189048848,-500.0,0.00013761,2]
[354034996,1740189048858,-500.0,0.00013761,2]
[354034997,1740189048868,-500.0,0.00013761,2]
[354034998,1740189048877,-500.0,0.00013761,2]
[354034999,1740189048887,-500.0,0.00013761,2]
[354035000,1740189048896,-518.4,0.00013761,2]
[354035001,1740189048906,-500.0,0.00013761,2]
[354035002,1740189048915,-500.0,0.00013761,2]
[354035003,1740189048925,-500.0,0.00013761,2]
[354035004,1740189048934,-500.0,0.00013761,2]
[354035005,1740189048945,-500.0,0.00013761,2]
[354035006,1740189048955,-500.0,0.00013761,2]
[354035007,1740189048964,-500.0,0.00013761,2]
[354035008,1740189048973,-500.0,0.00013761,2]
[354035009,1740189048983,-781.06,0.00013761,2]
[354035010,1740189048992,-526.19,0.00013761,2]
[354035011,1740189049002,-500.0,0.00013761,2]
[354035012,1740189049011,-644.43111286,0.00013761,2]
[354035013,1740189049020,-500.0,0.00013761,2]
[354035014,1740189049030,-500.0,0.00013761,2]
[354035015,1740189049042,-500.0,0.00013761,2]
[354035016,1740189049052,-500.0,0.00013761,2]
[354035017,1740189049062,-500.0,0.00013761,2]
[354035018,1740189049071,-500.0,0.00013761,2]
[354035019,1740189049081,-500.0,0.00013761,2]
[354035020,1740189049093,-500.0,0.00013761,2]
[354035021,1740189049102,-500.0,0.00013761,2]
[354035022,1740189049111,-500.0,0.00013761,2]
[354035023,1740189049120,-500.0,0.00013761,2]
[354035024,1740189049130,-500.0,0.00013761,2]
[354035025,1740189049140,-500.0,0.00013761,2]
[354035026,1740189049150,-646.8,0.00013761,2]
[354035027,1740189049159,-500.0,0.00013761,2]
[354035028,1740189049168,-500.0,0.00013761,2]
[354035029,1740189049181,-1266.0,0.00013762,2]
[354035030,1740189049190,-310.21162871,0.00013762,2]
[354035031,1740189049200,-500.0,0.00013762,2]
[354035032,1740189049210,-559.72477921,0.00013762,2]
[354035033,1740189049219,-500.0,0.00013762,2]
[354035034,1740189049228,-508.79128905,0.00013762,2]
[354035035,1740189049237,-354.60440264,0.00013762,2]
[354035036,1740189049246,-500.0,0.00013762,2]
[354035037,1740189049256,-514.92274868,0.00013762,2]
[354035038,1740189049265,-500.0,0.00013762,2]
[354035039,1740189049274,-223.78865635,0.00013762,2]
[354035040,1740189049283,-159.85893014,0.00013762,2]
[354035041,1740189049292,-462.57619351,0.00013762,2]
[354035042,1740189049305,-151.0,0.00013762,2]
[354035043,1740189049314,-500.0,0.00013762,2]
[354035044,1740189049323,-500.0,0.00013762,2]
[354035045,1740189049333,-500.0,0.00013762,2]
[354035046,1740189049343,-200.467384,0.00013762,2]
[354035047,1740189049352,-151.0,0.00013762,2]
[354035048,1740189049362,-151.0,0.00013762,2]
[354035049,1740189049371,-151.0,0.00013762,2]
[354035050,1740189049381,-151.0,0.00013762,2]
[354035051,1740189049390,-500.0,0.00013762,2]
[354035052,1740189049400,-151.0,0.00013762,2]
[354035053,1740189049410,-151.0,0.00013762,2]
[354035054,1740189049419,-568.65048002,0.00013762,2]
[354035055,1740189049428,-500.0,0.00013762,2]
[354035056,1740189049437,-500.0,0.00013762,2]
[354035057,1740189049447,-510.85432645,0.00013762,2]
[354035058,1740189049456,-151.0,0.00013762,2]
[354035059,1740189049466,-500.0,0.00013762,2]
[354035060,1740189049475,-151.0,0.00013762,2]
[354035061,1740189049484,-500.0,0.00013762,2]
[354035062,1740189049494,-151.0,0.00013762,2]
[354035063,1740189049503,-151.0,0.00013762,2]
[354035064,1740189049511,-151.0,0.00013762,2]
[354035065,1740189049520,-151.0,0.00013762,2]
[354035066,1740189049530,-500.0,0.00013762,2]
[354035067,1740189049539,-242.118806,0.00013762,2]
[354035068,1740189049548,-242.118806,0.00013762,2]
[354035069,1740189049557,-500.0,0.00013762,2]
[354035070,1740189049566,-500.0,0.00013762,2]
[354035071,1740189049576,-500.0,0.00013762,2]
[354035072,1740189049587,-500.0,0.00013762,2]
[354035073,1740189049597,-500.0,0.00013762,2]
[354035074,1740189049607,-500.0,0.00013762,2]
[354035075,1740189049616,-500.0,0.00013762,2]
[354035076,1740189049627,-500.0,0.00013762,2]
[354035077,1740189049636,-500.0,0.00013762,2]
[354035078,1740189049646,-500.0,0.00013762,2]
[354035079,1740189049655,-500.0,0.00013762,2]
[354035080,1740189049665,-500.0,0.00013762,2]
[354035081,1740189049675,-500.0,0.00013762,2]
[354035082,1740189049684,-504.74719634,0.00013762,2]
[354035083,1740189049695,-500.0,0.00013762,2]
[354035084,1740189049705,-507.70222255,0.00013762,2]
[354035085,1740189049714,-500.0,0.00013762,2]
[354035086,1740189049724,-500.0,0.00013762,2]
[354035087,1740189049733,-500.0,0.00013762,2]
[354035088,1740189049743,-500.0,0.00013762,2]
[354035089,1740189049753,-500.0,0.00013762,2]
[354035090,1740189049762,-500.0,0.00013762,2]
[354035091,1740189049772,-500.0,0.00013762,2]
[354035092,1740189049781,-151.0,0.00013762,2]
[354035093,1740189049790,-500.0,0.00013762,2]
[354035094,1740189049801,-580.3205334,0.00013762,2]
[354035095,1740189049810,-500.0,0.00013762,2]
[354035096,1740189049819,-509.39976649,0.00013762,2]
[354035097,1740189049828,-500.0,0.00013762,2]
[354035098,1740189049837,-500.0,0.00013762,2]
[354035099,1740189049846,-500.0,0.00013762,2]
[354035100,1740189049855,-645.2270229,0.00013762,2]
[354035101,1740189049864,-83.39984577,0.00013762,2]
[354035102,1740189050083,-174.32402223,0.00013762,2]
[354035103,1740189050231,-500.0,0.00013762,2]
[354035104,1740189050241,-257.723868,0.00013762,2]
[354035105,1740189050251,-500.0,0.00013762,2]
[354035106,1740189050261,-500.0,0.00013762,2]
[354035107,1740189050270,-500.0,0.00013762,2]
[354035108,1740189050279,-500.0,0.00013762,2]
[354035109,1740189050289,-500.0,0.00013762,2]
[354035110,1740189050300,-500.0,0.00013762,2]
[354035111,1740189050311,-151.0,0.00013762,2]
[354035112,1740189050322,-500.0,0.00013762,2]
[354035113,1740189050332,-151.0,0.00013762,2]
[354035114,1740189050342,-500.0,0.00013762,2]
[354035115,1740189050351,-500.0,0.00013762,2]
[354035116,1740189050361,-500.0,0.00013762,2]
[354035117,1740189050370,-500.0,0.00013762,2]
[354035118,1740189050380,-500.0,0.00013762,2]
[354035119,1740189050391,-215.014188,0.00013762,2]
[354035120,1740189050401,-500.0,0.00013762,2]
[354035121,1740189050412,-500.0,0.00013762,2]
[354035122,1740189050423,-215.014188,0.00013762,2]
[354035123,1740189050433,-500.0,0.00013762,2]
[354035124,1740189050443,-500.0,0.00013762,2]
[354035125,1740189050453,-500.0,0.00013762,2]
[354035126,1740189050463,-500.0,0.00013762,2]
[354035127,1740189050472,-500.0,0.00013762,2]
[354035128,1740189050482,-500.0,0.00013762,2]
[354035129,1740189050491,-500.0,0.00013762,2]
[354035130,1740189050500,-500.0,0.00013762,2]
[354035131,1740189050510,-500.0,0.00013762,2]
[354035132,1740189050519,-500.0,0.00013762,2]
[354035133,1740189050528,-151.0,0.00013762,2]
[354035134,1740189050537,-500.0,0.00013762,2]
[354035135,1740189050546,-506.23814572,0.00013762,2]
[354035136,1740189050556,-440.616153,0.00013762,2]
[354035137,1740189050565,-230.63894478,0.00013762,2]
[354035138,1740189050575,-422.68938967,0.00013762,2]
[354035139,1740189050585,-500.0,0.00013762,2]
[354035140,1740189050595,-500.0,0.00013762,2]
[354035141,1740189050603,-330.26951081,0.00013762,2]
[354035142,1740189050613,-500.0,0.00013762,2]
[354035143,1740189050622,-637.09507106,0.00013762,2]
[354035144,1740189050631,-533.968298,0.00013762,2]
[354035145,1740189050641,-500.0,0.00013762,2]
[354035146,1740189050651,-500.0,0.00013762,2]
[354035147,1740189050661,-500.0,0.00013762,2]
[354035148,1740189050671,-500.0,0.00013762,2]
[354035149,1740189050680,-511.43878361,0.00013762,2]
[354035150,1740189050689,-500.0,0.00013762,2]
[354035151,1740189050699,-500.0,0.00013762,2]
[354035152,1740189050708,-500.0,0.00013762,2]
[354035153,1740189050717,-500.0,0.00013762,2]
[354035154,1740189050726,-500.0,0.00013762,2]
[354035155,1740189050736,-500.0,0.00013762,2]
[354035156,1740189050745,-500.0,0.00013762,2]
[354035157,1740189050754,-500.0,0.00013762,2]
[354035158,1740189050763,-500.0,0.00013762,2]
[354035159,1740189050772,-500.0,0.00013762,2]
[354035160,1740189050781,-500.0,0.00013762,2]
[354035161,1740189050790,-500.0,0.00013762,2]
[354035162,1740189050801,-500.0,0.00013762,2]
[354035163,1740189050811,-500.0,0.00013762,2]
[354035164,1740189050820,-500.0,0.00013762,2]
[354035165,1740189050829,-605.31606965,0.00013762,2]
[354035166,1740189050838,-500.0,0.00013762,2]
[354035167,1740189050847,-500.0,0.00013762,2]
[354035168,1740189050856,-500.0,0.00013762,2]
[354035169,1740189050865,-500.0,0.00013762,2]
[354035170,1740189050875,-500.0,0.00013762,2]
[354035171,1740189050884,-500.0,0.00013762,2]
[354035172,1740189050893,-500.0,0.00013762,2]
[354035173,1740189050904,-500.0,0.00013762,2]
[354035174,1740189050913,-500.0,0.00013762,2]
[354035175,1740189050922,-262.8069567,0.00013762,2]
[354035176,1740189050932,-500.0,0.00013762,2]
[354035177,1740189050941,-500.0,0.00013762,2]
[354035178,1740189050951,-500.0,0.00013762,2]
[354035179,1740189050960,-500.0,0.00013762,2]
[354035180,1740189050970,-500.0,0.00013762,2]
[354035181,1740189050979,-506.94226656,0.00013762,2]
[354035182,1740189050987,-500.0,0.00013762,2]
[354035183,1740189050996,-500.0,0.00013762,2]
[354035184,1740189051006,-631.82686015,0.00013762,2]
[354035185,1740189051015,-500.0,0.00013762,2]
[354035186,1740189051024,-500.0,0.00013762,2]
[354035187,1740189051034,-780.340061,0.00013762,2]
[354035188,1740189051046,-780.340061,0.00013762,2]
[354035189,1740189051055,-500.0,0.00013762,2]
[354035190,1740189051066,-500.0,0.00013762,2]
[354035191,1740189051078,-239.26331763,0.00013762,2]
[354035192,1740189051088,-500.0,0.00013762,2]
[354035193,1740189051097,-151.0,0.00013762,2]
[354035194,1740189051106,-500.0,0.00013762,2]
[354035195,1740189051117,-293.528243,0.00013762,2]
[354035196,1740189051126,-151.0,0.00013762,2]
[354035197,1740189051136,-500.0,0.00013762,2]
[354035198,1740189051146,-515.84618081,0.00013762,2]
[354035199,1740189051155,-505.77222467,0.00013762,2]
[354035200,1740189051165,-151.0,0.00013762,2]
[354035201,1740189051175,-500.0,0.00013762,2]
[354035202,1740189051185,-500.0,0.00013762,2]
[354035203,1740189051194,-500.0,0.00013762,2]
[354035204,1740189051204,-500.0,0.00013762,2]
[354035205,1740189051213,-500.0,0.00013762,2]
[354035206,1740189051222,-500.0,0.00013762,2]
[354035207,1740189051232,-500.0,0.00013762,2]
[354035208,1740189051240,-502.86875987,0.00013762,2]
[354035209,1740189051250,-500.0,0.00013762,2]
[354035210,1740189051259,-500.0,0.00013762,2]
[354035211,1740189051267,-151.0,0.00013762,2]
[354035212,1740189051276,-501.50714807,0.00013762,2]
[354035213,1740189051285,-500.0,0.00013762,2]
[354035214,1740189051294,-403.60919,0.00013762,2]
[354035215,1740189051303,-504.02702056,0.00013762,2]
[354035216,1740189051313,-575.86285663,0.00013762,2]
[354035217,1740189051322,-403.60919,0.00013762,2]
[354035218,1740189051331,-500.0,0.00013762,2]
[354035219,1740189051340,-279.81571732,0.00013762,2]
[354035220,1740189051350,-500.0,0.00013762,2]
[354035221,1740189051359,-500.0,0.00013762,2]
[354035222,1740189051367,-500.0,0.00013762,2]
[354035223,1740189051377,-151.862993,0.00013762,2]
[354035224,1740189051386,-500.0,0.00013762,2]
[354035225,1740189051395,-505.91619655,0.00013762,2]
[354035226,1740189051404,-500.0,0.00013762,2]
[354035227,1740189051413,-500.0,0.00013762,2]
[354035228,1740189051422,-500.0,0.00013762,2]
[354035229,1740189051431,-534.93976066,0.00013762,2]
[354035230,1740189051440,-500.0,0.00013762,2]
[354035231,1740189051451,-505.80334116,0.00013762,2]
[354035232,1740189051462,-500.0,0.00013762,2]
[354035233,1740189051475,-500.0,0.00013762,2]
[354035234,1740189051489,-500.0,0.00013762,2]
[354035235,1740189051501,-500.0,0.00013762,2]
[354035236,1740189051513,-516.28686875,0.00013762,2]
[354035237,1740189051527,-500.0,0.00013762,2]
[354035238,1740189051541,-500.0,0.00013762,2]
[354035239,1740189051555,-500.0,0.00013762,2]
[354035240,1740189051567,-500.0,0.00013762,2]
[354035241,1740189051580,-1670.67,0.00013762,2]
[354035242,1740189051592,-500.0,0.00013762,2]
[354035243,1740189051606,-500.0,0.00013762,2]
[354035244,1740189051619,-196.840195,0.00013762,2]
[354035245,1740189051632,-218.971638,0.00013762,2]
[354035246,1740189051646,-500.0,0.00013762,2]
[354035247,1740189051659,-196.840195,0.00013762,2]
[354035248,1740189051674,-218.971638,0.00013762,2]
[354035249,1740189051687,-500.0,0.00013762,2]
[354035250,1740189051700,-500.0,0.00013762,2]
[354035251,1740189051713,-500.0,0.00013762,2]
[354035252,1740189051726,-500.0,0.00013762,2]
[354035253,1740189051740,-154.140625,0.00013762,2]
[354035254,1740189051752,-500.0,0.00013762,2]
[354035255,1740189051765,-500.0,0.00013762,2]
[354035256,1740189051775,-500.0,0.00013762,2]
[354035257,1740189051787,-509.48516029,0.00013762,2]
[354035258,1740189051804,-500.0,0.00013762,2]
[354035259,1740189051818,-500.0,0.00013762,2]
[354035260,1740189051828,-500.0,0.00013762,2]
[354035261,1740189051839,-500.0,0.00013762,2]
[354035262,1740189051852,-500.0,0.00013762,2]
[354035263,1740189051867,-161.014055,0.00013762,2]
[354035264,1740189051878,-500.0,0.00013762,2]
[354035265,1740189051889,-500.0,0.00013762,2]
[354035266,1740189051901,-500.0,0.00013762,2]
[354035267,1740189051913,-161.014055,0.00013762,2]
[354035268,1740189051925,-589.74,0.00013762,2]
[354035269,1740189051937,-500.0,0.00013762,2]
[354035270,1740189051952,-500.0,0.00013762,2]
[354035271,1740189051964,-500.0,0.00013762,2]
[354035272,1740189051976,-511.12347757,0.00013762,2]
[354035273,1740189051987,-512.07539006,0.00013762,2]
[354035274,1740189052000,-1053.16,0.00013762,2]
[354035275,1740189052013,-500.0,0.00013762,2]
[354035276,1740189052025,-500.0,0.00013762,2]
[354035277,1740189052040,-615.71,0.00013762,2]
[354035278,1740189052053,-500.0,0.00013762,2]
[354035279,1740189052066,-506.86912537,0.00013762,2]
[354035280,1740189052078,-340.935611,0.00013762,2]
[354035281,1740189052092,-500.0,0.00013762,2]
[354035282,1740189052105,-340.935611,0.00013762,2]
[354035283,1740189052117,-500.0,0.00013762,2]
[354035284,1740189052129,-500.0,0.00013762,2]
[354035285,1740189052141,-500.0,0.00013762,2]
[354035286,1740189052153,-500.0,0.00013762,2]
[354035287,1740189052165,-500.0,0.00013762,2]
[354035288,1740189052176,-500.0,0.00013762,2]
[354035289,1740189052188,-500.0,0.00013762,2]
[354035290,1740189052201,-500.0,0.00013762,2]
[354035291,1740189052213,-500.0,0.00013762,2]
[354035292,1740189052226,-500.0,0.00013762,2]
[354035293,1740189052238,-500.0,0.00013762,2]
[354035294,1740189052251,-1298.32,0.00013762,2]
[354035295,1740189052264,-500.0,0.00013762,2]
[354035296,1740189052276,-500.0,0.00013762,2]
[354035297,1740189052289,-500.0,0.00013762,2]
[354035298,1740189052301,-151.0,0.00013762,2]
[354035299,1740189052313,-500.0,0.00013762,2]
[354035300,1740189052327,-500.0,0.00013762,2]
[354035301,1740189052338,-151.0,0.00013762,2]
[354035302,1740189052350,-500.0,0.00013762,2]
[354035303,1740189052364,-500.0,0.00013762,2]
[354035304,1740189052376,-151.0,0.00013762,2]
[354035305,1740189052389,-506.28471124,0.00013762,2]
[354035306,1740189052402,-358.69016352,0.00013762,2]
[354035307,1740189052414,-869.034507,0.00013762,2]
[354035308,1740189052427,-500.0,0.00013762,2]
[354035309,1740189052441,-500.0,0.00013762,2]
[354035310,1740189052454,-500.0,0.00013762,2]
[354035311,1740189052467,-869.034507,0.00013762,2]
[354035312,1740189052479,-500.0,0.00013762,2]
[354035313,1740189052491,-500.0,0.00013762,2]
[354035314,1740189052504,-500.0,0.00013762,2]
[354035315,1740189052516,-500.0,0.00013762,2]
[354035316,1740189052527,-511.1434341,0.00013762,2]
[354035317,1740189052539,-500.0,0.00013762,2]
[354035318,1740189052550,-500.0,0.00013762,2]
[354035319,1740189052563,-500.0,0.00013762,2]
[354035320,1740189052574,-660.73,0.00013762,2]
[354035321,1740189052587,-500.0,0.00013762,2]
[354035322,1740189052599,-500.0,0.00013762,2]
[354035323,1740189052608,-151.0,0.00013762,2]
[354035324,1740189052617,-500.0,0.00013762,2]
[354035325,1740189052626,-721.500866,0.00013762,2]
[354035326,1740189052636,-500.0,0.00013762,2]
[354035327,1740189052646,-500.0,0.00013762,2]
[354035328,1740189052655,-289.215997,0.00013762,2]
[354035329,1740189052665,-580.96,0.00013762,2]
[354035330,1740189052675,-151.0,0.00013762,2]
[354035331,1740189052684,-721.500866,0.00013762,2]
[354035332,1740189052693,-500.0,0.00013762,2]
[354035333,1740189052703,-151.0,0.00013762,2]
[354035334,1740189052713,-1000.0,0.00013762,2]
[354035335,1740189052722,-500.0,0.00013762,2]
[354035336,1740189052731,-500.0,0.00013762,2]
[354035337,1740189052740,-500.0,0.00013762,2]
[354035338,1740189052751,-500.0,0.00013762,2]
[354035339,1740189052760,-500.0,0.00013762,2]
[354035340,1740189052769,-500.0,0.00013762,2]
[354035341,1740189052778,-500.0,0.00013762,2]
[354035342,1740189052787,-506.72992816,0.00013762,2]
[354035343,1740189052798,-500.0,0.00013762,2]
[354035344,1740189052808,-500.0,0.00013762,2]
[354035345,1740189052817,-501.18,0.00013762,2]
[354035346,1740189052827,-755.49,0.00013762,2]
[354035347,1740189052837,-500.0,0.00013762,2]
[354035348,1740189052846,-592.93,0.00013762,2]
[354035349,1740189052855,-500.0,0.00013762,2]
[354035350,1740189052864,-500.0,0.00013762,2]
[354035351,1740189052874,-500.0,0.00013762,2]
[354035352,1740189052883,-500.0,0.00013762,2]
[354035353,1740189052892,-500.0,0.00013762,2]
[354035354,1740189052902,-500.0,0.00013762,2]
[354035355,1740189052911,-1219.552035,0.00013762,2]
[354035356,1740189052920,-500.0,0.00013762,2]
[354035357,1740189052929,-1219.552035,0.00013762,2]
[354035358,1740189052939,-500.0,0.00013762,2]
[354035359,1740189053216,-500.0,0.00013762,2]
[354035360,1740189053247,-151.0,0.00013762,2]
[354035361,1740189053267,-500.0,0.00013762,2]
[354035362,1740189053279,-15700.22537905,0.00013764,3]
[354035363,1740189053324,-500.0,0.00013762,2]
[354035364,1740189053334,-78033.59445076,0.00013764,3]
[354035365,1740189053345,-1958.61917596,0.00013764,3]
[354035366,1740189053687,-500.0,0.00013596,2]
[354035367,1740189053697,-500.0,0.00013597,2]
[354035368,1740189053706,-500.0,0.00013678,2]
[354035369,1740189053716,-587.14,0.0001368,2]
[354035370,1740189053725,-500.0,0.00013761,2]
[354035371,1740189053735,-3088.43388188,0.00013764,3]
[354035372,1740189053778,-3684.915702,0.00013764,3]
[354035373,1740189053951,-7750.66071037,0.00013764,3]
[354035374,1740189053962,-4481.46949273,0.00013764,3]
[354035375,1740189053975,-726.52366915,0.00013764,3]
[354035376,1740189053987,-965.71228603,0.00013764,3]
[354035377,1740189054001,-945.69999985,0.00013764,3]
[354035378,1740189054023,-861.62901273,0.00013764,3]
[354035379,1740189054040,-858.01027468,0.00013764,3]
[354035380,1740189308460,-1800.0,0.000137,5]
[354035381,1740189308501,-13300.0,0.000138,5]
[354035382,1740189308525,-2400.0,0.000138,5]
[354035383,1740189317362,-12500.0,0.000139,5]
[354035386,1740189947671,-538.69,0.00013562,14]
[354035387,1740189947732,-1400.0,0.000137,5]
[354035388,1740189947780,-1900.0,0.000138,5]
[354035389,1740189964662,5552.0,0.000138,5]
[354035392,1740190039440,5300.0,0.000137,5]
[354035393,1740190041538,5309.31,0.000138,5]
[354035400,1740190232362,-416.38242384,0.0001,2]
[354035401,1740190232373,-133.61757616,0.0001,2]
[354035402,1740190232382,-387.59135717,0.00010667,2]
[354035403,1740190232393,-287.680003,0.00010667,2]
[354035404,1740190232405,-415.09863983,0.00010667,2]
[354035405,1740190232414,-225.12259931,0.0001108,2]
[354035406,1740190232423,-3453.49749322,0.0001118,2]
[354035407,1740190232432,-1720.73,0.00011911,2]
[354035408,1740190232442,-177.25,0.00011936,2]
[354035409,1740190232646,-507.45,0.00011948,2]
[354035410,1740190232656,-507.16,0.00011948,2]
[354035411,1740190232665,-800.0,0.00011948,2]
[354035412,1740190232674,-500.0,0.00011948,2]
[354035413,1740190232683,-600.0,0.00012,2]
[354035414,1740190232693,-200.0,0.00012118,2]
[354035415,1740190232704,-1038.86,0.00012165,2]
[354035416,1740190232713,-1499.53913001,0.00012178,2]
[354035418,1740190232731,-153.13086999,0.00012178,2]
[354035420,1740190232740,-1018.89,0.00012179,2]
[354035422,1740190232749,-145.51588174,0.0001219,2]
[354035424,1740190232760,-893.34411826,0.0001219,2]
[354035426,1740190232769,-1038.86,0.00012216,2]
[354035428,1740190232779,-250.0,0.00012222,2]
[354035430,1740190232788,-1000.0,0.00012225,2]
[354035432,1740190232797,-1038.86,0.00012241,2]
[354035434,1740190232807,-2000.0,0.00012267,2]
[354035436,1740190232815,-1038.86,0.00012267,2]
[354035438,1740190232825,-1038.86,0.00012293,2]
[354035440,1740190232833,-1038.86,0.00012318,2]